{"text_format":"1","workbook":"xlsx","n_sheets":3,"sheets":["Лист1","Лист2","Лист3"],"not_rendered":{"charts":0,"images":0,"macros":1,"external_links":0,"defined_names":1,"comments":0,"pivot_tables":0},"unopened":[],"bounds":{"document_bytes":16777216,"sheet_cells":100000,"rows_first":2000,"rows_last":500,"rows_between":2000,"halvings":0,"cell_chars":16384,"cell_head_chars":4096},"cells_cut":0,"cells_raw":0,"read":"whole","date_system":"1900"}

{"sheet":"Лист1","index":0,"n_rows":0,"n_cols":0,"rows_kept":0,"cut":false,"hidden":false,"merged":[]}

{"sheet":"Лист2","index":1,"n_rows":103,"n_cols":9,"rows_kept":103,"cut":false,"hidden":false,"merged":[]}
[{"$f":"MATCH(\"Наименование банка\",Лист3!B:B,)","v":69},{"$f":"INDEX(Лист3!B:B,$A1)","v":"Наименование банка"},{"$f":"INDEX(Лист3!C:C,$A1)","v":"Координаты"},{"$f":"INDEX(Лист3!D:D,$A1)","v":"Пок."},{"$f":"INDEX(Лист3!E:E,$A1)","v":"Прод."},{"$f":"INDEX(Лист3!F:F,$A1)","v":"Ком."},{"$f":"INDEX(Лист3!G:G,$A1)","v":"Сумма."},{"$f":"INDEX(Лист3!H:H,$A1)","v":"Время."},{"$f":"INDEX(Лист3!I:I,$A1)","v":"Дополнительная информация"}]
[]
[{"$f":"ROW(A1)*5+A$1-3","v":71},{"$f":"INDEX(Лист3!B:B,$A3)","v":"ООО КБ \"ФПК\" оквку № 24 \"Семёновская\""},{"$f":"INDEX(Лист3!C:C,$A3)&\"\"","v":"м. Семёновская"},{"$f":"IFERROR(IFERROR(--(INDEX(Лист3!D:D,$A3)&\"\"),--SUBSTITUTE(INDEX(Лист3!D:D,$A3)&\"\",\".\",\",\")),\"\")","v":77.099999999999994},{"$f":"IFERROR(IFERROR(--(INDEX(Лист3!E:E,$A3)&\"\"),--SUBSTITUTE(INDEX(Лист3!E:E,$A3)&\"\",\".\",\",\")),\"\")","v":79},{"$f":"INDEX(Лист3!F:F,$A3)","v":"Нет"},{"$f":"INDEX(Лист3!G:G,$A3)","v":10000},{"$f":"INDEX(Лист3!H:H,$A3)","v":"09:33:01"},{"$f":"INDEX(Лист3!I:I,$A3)","v":"(8495)365 02 00; (8967)248 88 32ул. Щербаковская, д. 5Партизанская, Семёновская"}]
[{"$f":"ROW(A2)*5+A$1-3","v":76},{"$f":"INDEX(Лист3!B:B,$A4)","v":"ООО КБ \"ФПК\" оквку № 24 \"Семёновская\""},{"$f":"INDEX(Лист3!C:C,$A4)&\"\"","v":"м. Семёновская"},{"$f":"IFERROR(IFERROR(--(INDEX(Лист3!D:D,$A4)&\"\"),--SUBSTITUTE(INDEX(Лист3!D:D,$A4)&\"\",\".\",\",\")),\"\")","v":77.099999999999994},{"$f":"IFERROR(IFERROR(--(INDEX(Лист3!E:E,$A4)&\"\"),--SUBSTITUTE(INDEX(Лист3!E:E,$A4)&\"\",\".\",\",\")),\"\")","v":79},{"$f":"INDEX(Лист3!F:F,$A4)","v":"Нет"},{"$f":"INDEX(Лист3!G:G,$A4)","v":20000},{"$f":"INDEX(Лист3!H:H,$A4)","v":"09:33:01"},{"$f":"INDEX(Лист3!I:I,$A4)","v":"(8495)365 02 00; (8967)248 88 32ул. Щербаковская, д. 5Партизанская, Семёновская"}]
[81,{"$f":"INDEX(Лист3!B:B,$A5)","v":"АО БАНК \"ТГБ\" оквку \"м. Кропоткинская, Гоголевский бульвар, д. 2\""},{"$f":"INDEX(Лист3!C:C,$A5)&\"\"","v":"м. Кропоткинская"},{"$f":"IFERROR(IFERROR(--(INDEX(Лист3!D:D,$A5)&\"\"),--SUBSTITUTE(INDEX(Лист3!D:D,$A5)&\"\",\".\",\",\")),\"\")","v":77.509900000000002},{"$f":"IFERROR(IFERROR(--(INDEX(Лист3!E:E,$A5)&\"\"),--SUBSTITUTE(INDEX(Лист3!E:E,$A5)&\"\",\".\",\",\")),\"\")","v":78.140100000000004},{"$f":"INDEX(Лист3!F:F,$A5)","v":"Нет"},{"$f":"INDEX(Лист3!G:G,$A5)","v":1000},{"$f":"INDEX(Лист3!H:H,$A5)","v":"09:33:00"},{"$f":"INDEX(Лист3!I:I,$A5)","v":"(8963)999 11 68; (8963)999 11 83Бульвар Гоголевский, д. 2/18/1, стр. 3Кропоткинская"}]
[86,{"$f":"INDEX(Лист3!B:B,$A6)","v":"АО БАНК \"ТГБ\" оквку \"м. Кропоткинская, Гоголевский бульвар, д. 2\""},{"$f":"INDEX(Лист3!C:C,$A6)&\"\"","v":"м. Кропоткинская"},{"$f":"IFERROR(IFERROR(--(INDEX(Лист3!D:D,$A6)&\"\"),--SUBSTITUTE(INDEX(Лист3!D:D,$A6)&\"\",\".\",\",\")),\"\")","v":77.509900000000002},{"$f":"IFERROR(IFERROR(--(INDEX(Лист3!E:E,$A6)&\"\"),--SUBSTITUTE(INDEX(Лист3!E:E,$A6)&\"\",\".\",\",\")),\"\")","v":78.140100000000004},{"$f":"INDEX(Лист3!F:F,$A6)","v":"Нет"},{"$f":"INDEX(Лист3!G:G,$A6)","v":10000},{"$f":"INDEX(Лист3!H:H,$A6)","v":"09:33:00"},{"$f":"INDEX(Лист3!I:I,$A6)","v":"(8963)999 11 68; (8963)999 11 83Бульвар Гоголевский, д. 2/18/1, стр. 3Кропоткинская"}]
[91,{"$f":"INDEX(Лист3!B:B,$A7)","v":"АО БАНК \"ТГБ\" оквку \"м. Кропоткинская, Гоголевский бульвар, д. 2\""},{"$f":"INDEX(Лист3!C:C,$A7)&\"\"","v":"м. Кропоткинская"},{"$f":"IFERROR(IFERROR(--(INDEX(Лист3!D:D,$A7)&\"\"),--SUBSTITUTE(INDEX(Лист3!D:D,$A7)&\"\",\".\",\",\")),\"\")","v":77.509900000000002},{"$f":"IFERROR(IFERROR(--(INDEX(Лист3!E:E,$A7)&\"\"),--SUBSTITUTE(INDEX(Лист3!E:E,$A7)&\"\",\".\",\",\")),\"\")","v":78.140100000000004},{"$f":"INDEX(Лист3!F:F,$A7)","v":"Нет"},{"$f":"INDEX(Лист3!G:G,$A7)","v":30000},{"$f":"INDEX(Лист3!H:H,$A7)","v":"09:33:00"},{"$f":"INDEX(Лист3!I:I,$A7)","v":"(8963)999 11 68; (8963)999 11 83Бульвар Гоголевский, д. 2/18/1, стр. 3Кропоткинская"}]
[96,{"$f":"INDEX(Лист3!B:B,$A8)","v":"КБ \"РИАЛ-КРЕДИТ\" (ООО) оквку \"Большая Тульская\" "},{"$f":"INDEX(Лист3!C:C,$A8)&\"\"","v":"м-н \"12 месяцев\""},{"$f":"IFERROR(IFERROR(--(INDEX(Лист3!D:D,$A8)&\"\"),--SUBSTITUTE(INDEX(Лист3!D:D,$A8)&\"\",\".\",\",\")),\"\")","v":77.510000000000005},{"$f":"IFERROR(IFERROR(--(INDEX(Лист3!E:E,$A8)&\"\"),--SUBSTITUTE(INDEX(Лист3!E:E,$A8)&\"\",\".\",\",\")),\"\")","v":78.7},{"$f":"INDEX(Лист3!F:F,$A8)","v":"Нет"},{"$f":"INDEX(Лист3!G:G,$A8)","v":10000},{"$f":"INDEX(Лист3!H:H,$A8)","v":"09:33:00"},{"$f":"INDEX(Лист3!I:I,$A8)","v":"(916)759 09 46; (495)434 97 79ул. Большая Тульская, д. 2"}]
[101,{"$f":"INDEX(Лист3!B:B,$A9)","v":"КБ \"РИАЛ-КРЕДИТ\" (ООО) оквку \"Большая Тульская\" "},{"$f":"INDEX(Лист3!C:C,$A9)&\"\"","v":"м-н \"12 месяцев\""},{"$f":"IFERROR(IFERROR(--(INDEX(Лист3!D:D,$A9)&\"\"),--SUBSTITUTE(INDEX(Лист3!D:D,$A9)&\"\",\".\",\",\")),\"\")","v":77.510000000000005},{"$f":"IFERROR(IFERROR(--(INDEX(Лист3!E:E,$A9)&\"\"),--SUBSTITUTE(INDEX(Лист3!E:E,$A9)&\"\",\".\",\",\")),\"\")","v":78.7},{"$f":"INDEX(Лист3!F:F,$A9)","v":"Нет"},{"$f":"INDEX(Лист3!G:G,$A9)","v":20000},{"$f":"INDEX(Лист3!H:H,$A9)","v":"09:33:00"},{"$f":"INDEX(Лист3!I:I,$A9)","v":"(916)759 09 46; (495)434 97 79ул. Большая Тульская, д. 2"}]
[106,{"$f":"INDEX(Лист3!B:B,$A10)","v":"ООО ИКБ \"ЛОГОС\" оквку \"Ленинский 66\" "},{"$f":"INDEX(Лист3!C:C,$A10)&\"\"","v":""},{"$f":"IFERROR(IFERROR(--(INDEX(Лист3!D:D,$A10)&\"\"),--SUBSTITUTE(INDEX(Лист3!D:D,$A10)&\"\",\".\",\",\")),\"\")","v":77.5},{"$f":"IFERROR(IFERROR(--(INDEX(Лист3!E:E,$A10)&\"\"),--SUBSTITUTE(INDEX(Лист3!E:E,$A10)&\"\",\".\",\",\")),\"\")","v":78.5},{"$f":"INDEX(Лист3!F:F,$A10)","v":"Нет"},{"$f":"INDEX(Лист3!G:G,$A10)","v":1000},{"$f":"INDEX(Лист3!H:H,$A10)","v":"09:32:59"},{"$f":"INDEX(Лист3!I:I,$A10)","v":"(499)133 43 45Ленинский проспект, д. 66Академическая, Университет"}]
[111,{"$f":"INDEX(Лист3!B:B,$A11)","v":"ООО ИКБ \"ЛОГОС\" оквку \"Ленинский 66\" "},{"$f":"INDEX(Лист3!C:C,$A11)&\"\"","v":""},{"$f":"IFERROR(IFERROR(--(INDEX(Лист3!D:D,$A11)&\"\"),--SUBSTITUTE(INDEX(Лист3!D:D,$A11)&\"\",\".\",\",\")),\"\")","v":77.7},{"$f":"IFERROR(IFERROR(--(INDEX(Лист3!E:E,$A11)&\"\"),--SUBSTITUTE(INDEX(Лист3!E:E,$A11)&\"\",\".\",\",\")),\"\")","v":78.5},{"$f":"INDEX(Лист3!F:F,$A11)","v":"Нет"},{"$f":"INDEX(Лист3!G:G,$A11)","v":10000},{"$f":"INDEX(Лист3!H:H,$A11)","v":"09:32:59"},{"$f":"INDEX(Лист3!I:I,$A11)","v":"(499)133 43 45Ленинский проспект, д. 66Академическая, Университет"}]
[116,{"$f":"INDEX(Лист3!B:B,$A12)","v":"ООО ИКБ \"ЛОГОС\" оквку \"Ленинский 66\" "},{"$f":"INDEX(Лист3!C:C,$A12)&\"\"","v":""},{"$f":"IFERROR(IFERROR(--(INDEX(Лист3!D:D,$A12)&\"\"),--SUBSTITUTE(INDEX(Лист3!D:D,$A12)&\"\",\".\",\",\")),\"\")","v":77.7},{"$f":"IFERROR(IFERROR(--(INDEX(Лист3!E:E,$A12)&\"\"),--SUBSTITUTE(INDEX(Лист3!E:E,$A12)&\"\",\".\",\",\")),\"\")","v":78.5},{"$f":"INDEX(Лист3!F:F,$A12)","v":"Нет"},{"$f":"INDEX(Лист3!G:G,$A12)","v":100000},{"$f":"INDEX(Лист3!H:H,$A12)","v":"09:32:59"},{"$f":"INDEX(Лист3!I:I,$A12)","v":"(499)133 43 45Ленинский проспект, д. 66Академическая, Университет"}]
[121,{"$f":"INDEX(Лист3!B:B,$A13)","v":"АО \"Гринкомбанк\" оквку \"Медведково\""},{"$f":"INDEX(Лист3!C:C,$A13)&\"\"","v":"м. Медведково"},{"$f":"IFERROR(IFERROR(--(INDEX(Лист3!D:D,$A13)&\"\"),--SUBSTITUTE(INDEX(Лист3!D:D,$A13)&\"\",\".\",\",\")),\"\")","v":77.709900000000005},{"$f":"IFERROR(IFERROR(--(INDEX(Лист3!E:E,$A13)&\"\"),--SUBSTITUTE(INDEX(Лист3!E:E,$A13)&\"\",\".\",\",\")),\"\")","v":""},{"$f":"INDEX(Лист3!F:F,$A13)","v":"Нет"},{"$f":"INDEX(Лист3!G:G,$A13)","v":5001},{"$f":"INDEX(Лист3!H:H,$A13)","v":"09:32:58"},{"$f":"INDEX(Лист3!I:I,$A13)","v":"(8985)430 04 07ул. Широкая, владение 11АМедведково"}]
[126,{"$f":"INDEX(Лист3!B:B,$A14)","v":"АО \"Гринкомбанк\" оквку \"Медведково\""},{"$f":"INDEX(Лист3!C:C,$A14)&\"\"","v":"м. Медведково"},{"$f":"IFERROR(IFERROR(--(INDEX(Лист3!D:D,$A14)&\"\"),--SUBSTITUTE(INDEX(Лист3!D:D,$A14)&\"\",\".\",\",\")),\"\")","v":77.709900000000005},{"$f":"IFERROR(IFERROR(--(INDEX(Лист3!E:E,$A14)&\"\"),--SUBSTITUTE(INDEX(Лист3!E:E,$A14)&\"\",\".\",\",\")),\"\")","v":""},{"$f":"INDEX(Лист3!F:F,$A14)","v":"Нет"},{"$f":"INDEX(Лист3!G:G,$A14)","v":20000},{"$f":"INDEX(Лист3!H:H,$A14)","v":"09:32:58"},{"$f":"INDEX(Лист3!I:I,$A14)","v":"(8985)430 04 07ул. Широкая, владение 11АМедведково"}]
[131,{"$f":"INDEX(Лист3!B:B,$A15)","v":"КБ \"РИАЛ-КРЕДИТ\" (ООО) оквку \"Митинская\" "},{"$f":"INDEX(Лист3!C:C,$A15)&\"\"","v":""},{"$f":"IFERROR(IFERROR(--(INDEX(Лист3!D:D,$A15)&\"\"),--SUBSTITUTE(INDEX(Лист3!D:D,$A15)&\"\",\".\",\",\")),\"\")","v":77.7},{"$f":"IFERROR(IFERROR(--(INDEX(Лист3!E:E,$A15)&\"\"),--SUBSTITUTE(INDEX(Лист3!E:E,$A15)&\"\",\".\",\",\")),\"\")","v":78.2},{"$f":"INDEX(Лист3!F:F,$A15)","v":"Нет"},{"$f":"INDEX(Лист3!G:G,$A15)","v":1000},{"$f":"INDEX(Лист3!H:H,$A15)","v":"09:32:58"},{"$f":"INDEX(Лист3!I:I,$A15)","v":"(8925)929 61 33; (8925)929 61 33ул. Митинская, дом 36, корп. 2Митино"}]
[136,{"$f":"INDEX(Лист3!B:B,$A16)","v":"КБ \"РИАЛ-КРЕДИТ\" (ООО) оквку \"Митинская\" "},{"$f":"INDEX(Лист3!C:C,$A16)&\"\"","v":""},{"$f":"IFERROR(IFERROR(--(INDEX(Лист3!D:D,$A16)&\"\"),--SUBSTITUTE(INDEX(Лист3!D:D,$A16)&\"\",\".\",\",\")),\"\")","v":77.7},{"$f":"IFERROR(IFERROR(--(INDEX(Лист3!E:E,$A16)&\"\"),--SUBSTITUTE(INDEX(Лист3!E:E,$A16)&\"\",\".\",\",\")),\"\")","v":78.2},{"$f":"INDEX(Лист3!F:F,$A16)","v":"Нет"},{"$f":"INDEX(Лист3!G:G,$A16)","v":5000},{"$f":"INDEX(Лист3!H:H,$A16)","v":"09:32:58"},{"$f":"INDEX(Лист3!I:I,$A16)","v":"(8925)929 61 33; (8925)929 61 33ул. Митинская, дом 36, корп. 2Митино"}]
[141,{"$f":"INDEX(Лист3!B:B,$A17)","v":"ООО КБ \"Стар Альянс\" оквку № 20 "},{"$f":"INDEX(Лист3!C:C,$A17)&\"\"","v":""},{"$f":"IFERROR(IFERROR(--(INDEX(Лист3!D:D,$A17)&\"\"),--SUBSTITUTE(INDEX(Лист3!D:D,$A17)&\"\",\".\",\",\")),\"\")","v":77.2},{"$f":"IFERROR(IFERROR(--(INDEX(Лист3!E:E,$A17)&\"\"),--SUBSTITUTE(INDEX(Лист3!E:E,$A17)&\"\",\".\",\",\")),\"\")","v":79.3},{"$f":"INDEX(Лист3!F:F,$A17)","v":"Нет"},{"$f":"INDEX(Лист3!G:G,$A17)","v":10000},{"$f":"INDEX(Лист3!H:H,$A17)","v":"09:32:58"},{"$f":"INDEX(Лист3!I:I,$A17)","v":"(8968)771 42 42; (8968)771 43 43ул. Маршала Бирюзова, д. 16Октябрьское поле"}]
[146,{"$f":"INDEX(Лист3!B:B,$A18)","v":"ООО КБ \"Стар Альянс\" оквку № 20 "},{"$f":"INDEX(Лист3!C:C,$A18)&\"\"","v":""},{"$f":"IFERROR(IFERROR(--(INDEX(Лист3!D:D,$A18)&\"\"),--SUBSTITUTE(INDEX(Лист3!D:D,$A18)&\"\",\".\",\",\")),\"\")","v":77.2},{"$f":"IFERROR(IFERROR(--(INDEX(Лист3!E:E,$A18)&\"\"),--SUBSTITUTE(INDEX(Лист3!E:E,$A18)&\"\",\".\",\",\")),\"\")","v":79.3},{"$f":"INDEX(Лист3!F:F,$A18)","v":"Нет"},{"$f":"INDEX(Лист3!G:G,$A18)","v":50000},{"$f":"INDEX(Лист3!H:H,$A18)","v":"09:32:58"},{"$f":"INDEX(Лист3!I:I,$A18)","v":"(8968)771 42 42; (8968)771 43 43ул. Маршала Бирюзова, д. 16Октябрьское поле"}]
[151,{"$f":"INDEX(Лист3!B:B,$A19)","v":"КБ \"ДС-Банк\" (ООО) оквку № 24 \"Динамо\" "},{"$f":"INDEX(Лист3!C:C,$A19)&\"\"","v":"м. Динамо"},{"$f":"IFERROR(IFERROR(--(INDEX(Лист3!D:D,$A19)&\"\"),--SUBSTITUTE(INDEX(Лист3!D:D,$A19)&\"\",\".\",\",\")),\"\")","v":77.709900000000005},{"$f":"IFERROR(IFERROR(--(INDEX(Лист3!E:E,$A19)&\"\"),--SUBSTITUTE(INDEX(Лист3!E:E,$A19)&\"\",\".\",\",\")),\"\")","v":""},{"$f":"INDEX(Лист3!F:F,$A19)","v":"Нет"},{"$f":"INDEX(Лист3!G:G,$A19)","v":5001},{"$f":"INDEX(Лист3!H:H,$A19)","v":"09:32:58"},{"$f":"INDEX(Лист3!I:I,$A19)","v":"(8499)408 23 73Старый Петровско-Разумовский проезд, д. 1/23, стр. 1Динамо, Дмитровская"}]
[156,{"$f":"INDEX(Лист3!B:B,$A20)","v":"КБ \"ДС-Банк\" (ООО) оквку № 24 \"Динамо\" "},{"$f":"INDEX(Лист3!C:C,$A20)&\"\"","v":"м. Динамо"},{"$f":"IFERROR(IFERROR(--(INDEX(Лист3!D:D,$A20)&\"\"),--SUBSTITUTE(INDEX(Лист3!D:D,$A20)&\"\",\".\",\",\")),\"\")","v":77.709900000000005},{"$f":"IFERROR(IFERROR(--(INDEX(Лист3!E:E,$A20)&\"\"),--SUBSTITUTE(INDEX(Лист3!E:E,$A20)&\"\",\".\",\",\")),\"\")","v":""},{"$f":"INDEX(Лист3!F:F,$A20)","v":"Нет"},{"$f":"INDEX(Лист3!G:G,$A20)","v":20001},{"$f":"INDEX(Лист3!H:H,$A20)","v":"09:32:58"},{"$f":"INDEX(Лист3!I:I,$A20)","v":"(8499)408 23 73Старый Петровско-Разумовский проезд, д. 1/23, стр. 1Динамо, Дмитровская"}]
[161,{"$f":"INDEX(Лист3!B:B,$A21)","v":"ОАО КБ \"ЮНИСТРИМ\" оквку № 243"},{"$f":"INDEX(Лист3!C:C,$A21)&\"\"","v":""},{"$f":"IFERROR(IFERROR(--(INDEX(Лист3!D:D,$A21)&\"\"),--SUBSTITUTE(INDEX(Лист3!D:D,$A21)&\"\",\".\",\",\")),\"\")","v":77.5},{"$f":"IFERROR(IFERROR(--(INDEX(Лист3!E:E,$A21)&\"\"),--SUBSTITUTE(INDEX(Лист3!E:E,$A21)&\"\",\".\",\",\")),\"\")","v":79},{"$f":"INDEX(Лист3!F:F,$A21)","v":"Нет"},{"$f":"INDEX(Лист3!G:G,$A21)","v":15000},{"$f":"INDEX(Лист3!H:H,$A21)","v":"09:32:57"},{"$f":"INDEX(Лист3!I:I,$A21)","v":"(499)252 12 56; (8909)690 27 73ул. Красная Пресня, д. 44, стр. 1Улица 1905 года"}]
[166,{"$f":"INDEX(Лист3!B:B,$A22)","v":"ПАО АКБ \"Акцент\" ОКВКУ \"МОЖАЙСКОЕ 25\""},{"$f":"INDEX(Лист3!C:C,$A22)&\"\"","v":"Можайск. шоссе 25"},{"$f":"IFERROR(IFERROR(--(INDEX(Лист3!D:D,$A22)&\"\"),--SUBSTITUTE(INDEX(Лист3!D:D,$A22)&\"\",\".\",\",\")),\"\")","v":77.709900000000005},{"$f":"IFERROR(IFERROR(--(INDEX(Лист3!E:E,$A22)&\"\"),--SUBSTITUTE(INDEX(Лист3!E:E,$A22)&\"\",\".\",\",\")),\"\")","v":78.995000000000005},{"$f":"INDEX(Лист3!F:F,$A22)","v":"Нет"},{"$f":"INDEX(Лист3!G:G,$A22)","v":10000},{"$f":"INDEX(Лист3!H:H,$A22)","v":"09:32:57"},{"$f":"INDEX(Лист3!I:I,$A22)","v":"(926)111 25 47; (985)970 38 68Можайское шоссе, д. 25Киевская (Арбатско-Покровская), Кунцевская (Филёвская), Славянский бульвар"}]
[171,{"$f":"INDEX(Лист3!B:B,$A23)","v":"ПАО АКБ \"Акцент\" ОКВКУ \"МОЖАЙСКОЕ 25\""},{"$f":"INDEX(Лист3!C:C,$A23)&\"\"","v":"Можайск. шоссе 25"},{"$f":"IFERROR(IFERROR(--(INDEX(Лист3!D:D,$A23)&\"\"),--SUBSTITUTE(INDEX(Лист3!D:D,$A23)&\"\",\".\",\",\")),\"\")","v":77.709900000000005},{"$f":"IFERROR(IFERROR(--(INDEX(Лист3!E:E,$A23)&\"\"),--SUBSTITUTE(INDEX(Лист3!E:E,$A23)&\"\",\".\",\",\")),\"\")","v":78.995000000000005},{"$f":"INDEX(Лист3!F:F,$A23)","v":"Нет"},{"$f":"INDEX(Лист3!G:G,$A23)","v":100000},{"$f":"INDEX(Лист3!H:H,$A23)","v":"09:32:57"},{"$f":"INDEX(Лист3!I:I,$A23)","v":"(926)111 25 47; (985)970 38 68Можайское шоссе, д. 25Киевская (Арбатско-Покровская), Кунцевская (Филёвская), Славянский бульвар"}]
[176,{"$f":"INDEX(Лист3!B:B,$A24)","v":"ОАО КБ \"ЮНИСТРИМ\" оквку № 279"},{"$f":"INDEX(Лист3!C:C,$A24)&\"\"","v":"м. Октябрьская"},{"$f":"IFERROR(IFERROR(--(INDEX(Лист3!D:D,$A24)&\"\"),--SUBSTITUTE(INDEX(Лист3!D:D,$A24)&\"\",\".\",\",\")),\"\")","v":77.509900000000002},{"$f":"IFERROR(IFERROR(--(INDEX(Лист3!E:E,$A24)&\"\"),--SUBSTITUTE(INDEX(Лист3!E:E,$A24)&\"\",\".\",\",\")),\"\")","v":78.591499999999996},{"$f":"INDEX(Лист3!F:F,$A24)","v":"Нет"},{"$f":"INDEX(Лист3!G:G,$A24)","v":1000},{"$f":"INDEX(Лист3!H:H,$A24)","v":"09:32:57"},{"$f":"INDEX(Лист3!I:I,$A24)","v":"(499)990 09 25; (916)837 70 03Калужская пл., д. 1, стр. 7Октябрьская (Кольцевая)"}]
[181,{"$f":"INDEX(Лист3!B:B,$A25)","v":"ОАО КБ \"ЮНИСТРИМ\" оквку № 279"},{"$f":"INDEX(Лист3!C:C,$A25)&\"\"","v":"м. Октябрьская"},{"$f":"IFERROR(IFERROR(--(INDEX(Лист3!D:D,$A25)&\"\"),--SUBSTITUTE(INDEX(Лист3!D:D,$A25)&\"\",\".\",\",\")),\"\")","v":77.509900000000002},{"$f":"IFERROR(IFERROR(--(INDEX(Лист3!E:E,$A25)&\"\"),--SUBSTITUTE(INDEX(Лист3!E:E,$A25)&\"\",\".\",\",\")),\"\")","v":78.591499999999996},{"$f":"INDEX(Лист3!F:F,$A25)","v":"Нет"},{"$f":"INDEX(Лист3!G:G,$A25)","v":10000},{"$f":"INDEX(Лист3!H:H,$A25)","v":"09:32:57"},{"$f":"INDEX(Лист3!I:I,$A25)","v":"(499)990 09 25; (916)837 70 03Калужская пл., д. 1, стр. 7Октябрьская (Кольцевая)"}]
[]
[]
[]
[]
[]
[]
[]
[]
[]
[]
[]
[]
[]
[]
[]
[]
[]
[]
[]
[]
[]
[]
[]
[]
[]
[]
[]
[]
[]
[]
[]
[]
[]
[]
[]
[]
[]
[]
[]
[]
[]
[]
[]
[]
[]
[]
[]
[]
[]
[]
[]
[]
[]
[]
[]
[]
[]
[]
[]
[]
[]
[]
[]
[]
[]
[]
[]
[]
[]
[]
[]
[]
[]
[]
[]
[]
[]
["Показать выбранноеПоказать всеРаспечатать"]

{"sheet":"Лист3","index":2,"n_rows":437,"n_cols":9,"rows_kept":437,"cut":false,"hidden":false,"merged":[]}
["count"]
[null,"добавить в избранное","сделать стартовой","реклама","rss","новости партнеров"]
["РБКQuote"]
[null,"расширенный поиск"]
["Фондовый рынок "]
["Валюты "]
["Котировки "]
["Проверка контрагентов "]
["Личный кабинет"]
["Авторизация"]
["Для получения доступа Вам необходимо зарегистрироваться."]
["Если Вы уже являетесь пользователем системы, пожалуйста, введите логин и пароль."]
["Логин"]
["Пароль",null,"Забыли пароль?"]
["Сохранить пароль"]
["Забыли пароль?"]
["Пожалуйста, введите логин и адрес электронной почты, который был указан при регистрации."]
["E-mail"]
["Логин"]
["Изменить пароль"]
["Старый пароль"]
["Новый пароль"]
["Подтверждение"]
[]
["Прайс-лист"]
["Специальное предложение"]
["Здесь могут быть ваши котировки"]
["ОАО КБ \"ЮНИСТРИМ\" оквку № 292 \"Ленинский 95\""]
["(8495)729 44 51; (8499)132 20 03"]
["USD (покупка/продажа)"]
["77.7/79.0"]
["EUR (покупка/продажа)"]
["86.76/88.6"]
["ООО КБ \"Металлург\" ок ул. Ивана Бабушкина 16"]
["(8495)785 70 76"]
["АО АКБ \"ЦентроКредит\" ДО \"Центральный\""]
["(495)780 32 28"]
["USD (покупка/продажа)"]
["77.5/79.5"]
["EUR (покупка/продажа)"]
["87.0/88.5"]
["АО БАНК \"ТГБ\" ДО \"СЕРПУХОВСКИЙ ВАЛ\" "]
["(8925)740 62 02; (8985)762 72 00; (8903)688 22 11"]
["USD (покупка/продажа)"]
["78.05/78.99"]
["EUR (покупка/продажа)"]
["87.06/88.55"]
["АО БАНК \"ТГБ\" оквку ЛЕНИНСКИЙ ПРОСПЕКТ д. 88 (24 ЧАСА) \"ФАРАОН\""]
["(8967)197 66 77; (8499)131 70 22"]
["Курсы ЦБ","Прогнозы","Средние"]
[null,null,"дата","знач.","изм."]
[null,"EUR ЦБ РФ ","2016-02-09","85.65","-1.06%"]
[null,"USD ЦБ РФ ","2016-02-09","76.86","-0.62%"]
["Полная версия курсов ЦБ"]
[null,"прогноз","пот. абс."]
["USD/RUB","70.0808","-8.3612"]
["EUR/RUB","72.4583","-15.1387"]
["Все валюты"]
["Все валюты"]
[null,"дата","пок.","прод."]
["Нал. EUR","09:30:00","86.26","88.37"]
["Нал. USD","09:30:00","77.33","78.89"]
["Данные на: 09.02.2016","Средние курсы"]
["Рынок наличной валюты","Данные на "]
["Курсы валют","Средние курсы","Справочник банков","Справочник валют","Справка","Регистрация"]
["Город ","ОбновитьКонвертерРаспечатать"]
["Поиск по метро"]
["Показать выбранноеПоказать всеВалюта "]
[null,"Наименование банка","Координаты","Пок.","Прод.","Ком.","Сумма.","Время.","Дополнительная информация"]
[]
[null,"ООО КБ \"ФПК\" оквку № 24 \"Семёновская\"","м. Семёновская","77.1000","79.0000","Нет",10000,"09:33:01","(8495)365 02 00; (8967)248 88 32ул. Щербаковская, д. 5Партизанская, Семёновская"]
[null,null,null,null,null,null,null,null,"Адрес: ул. Щербаковская, д. 5"]
[null,null,null,null,null,null,null,null,"Метро: Партизанская, Семёновская"]
[null,null,null,null,null,null,null,null,"Телефон: (8495)365 02 00; (8967)248 88 32"]
[null,null,null,null,null,null,null,null,"Комиссия: Нет."]
[null,"ООО КБ \"ФПК\" оквку № 24 \"Семёновская\"","м. Семёновская","77.1000","79.0000","Нет",20000,"09:33:01","(8495)365 02 00; (8967)248 88 32ул. Щербаковская, д. 5Партизанская, Семёновская"]
[null,null,null,null,null,null,null,null,"Адрес: ул. Щербаковская, д. 5"]
[null,null,null,null,null,null,null,null,"Метро: Партизанская, Семёновская"]
[null,null,null,null,null,null,null,null,"Телефон: (8495)365 02 00; (8967)248 88 32"]
[null,null,null,null,null,null,null,null,"Комиссия: Нет."]
[null,"АО БАНК \"ТГБ\" оквку \"м. Кропоткинская, Гоголевский бульвар, д. 2\"","м. Кропоткинская","77.5099","78.1401","Нет",1000,"09:33:00","(8963)999 11 68; (8963)999 11 83Бульвар Гоголевский, д. 2/18/1, стр. 3Кропоткинская"]
[null,null,null,null,null,null,null,null,"Адрес: Бульвар Гоголевский, д. 2/18/1, стр. 3"]
[null,null,null,null,null,null,null,null,"Метро: Кропоткинская"]
[null,null,null,null,null,null,null,null,"Телефон: (8963)999 11 68; (8963)999 11 83"]
[null,null,null,null,null,null,null,null,"Комиссия: Нет."]
[null,"АО БАНК \"ТГБ\" оквку \"м. Кропоткинская, Гоголевский бульвар, д. 2\"","м. Кропоткинская","77.5099","78.1401","Нет",10000,"09:33:00","(8963)999 11 68; (8963)999 11 83Бульвар Гоголевский, д. 2/18/1, стр. 3Кропоткинская"]
[null,null,null,null,null,null,null,null,"Адрес: Бульвар Гоголевский, д. 2/18/1, стр. 3"]
[null,null,null,null,null,null,null,null,"Метро: Кропоткинская"]
[null,null,null,null,null,null,null,null,"Телефон: (8963)999 11 68; (8963)999 11 83"]
[null,null,null,null,null,null,null,null,"Комиссия: Нет."]
[null,"АО БАНК \"ТГБ\" оквку \"м. Кропоткинская, Гоголевский бульвар, д. 2\"","м. Кропоткинская","77.5099","78.1401","Нет",30000,"09:33:00","(8963)999 11 68; (8963)999 11 83Бульвар Гоголевский, д. 2/18/1, стр. 3Кропоткинская"]
[null,null,null,null,null,null,null,null,"Адрес: Бульвар Гоголевский, д. 2/18/1, стр. 3"]
[null,null,null,null,null,null,null,null,"Метро: Кропоткинская"]
[null,null,null,null,null,null,null,null,"Телефон: (8963)999 11 68; (8963)999 11 83"]
[null,null,null,null,null,null,null,null,"Комиссия: Нет."]
[null,"КБ \"РИАЛ-КРЕДИТ\" (ООО) оквку \"Большая Тульская\" ","м-н \"12 месяцев\"","77.5100","78.7000","Нет",10000,"09:33:00","(916)759 09 46; (495)434 97 79ул. Большая Тульская, д. 2"]
[null,null,null,null,null,null,null,null,"Адрес: ул. Большая Тульская, д. 2"]
[null,null,null,null,null,null,null,null,"Метро:"]
[null,null,null,null,null,null,null,null,"Телефон: (916)759 09 46; (495)434 97 79"]
[null,null,null,null,null,null,null,null,"Комиссия: Нет."]
[null,"КБ \"РИАЛ-КРЕДИТ\" (ООО) оквку \"Большая Тульская\" ","м-н \"12 месяцев\"","77.5100","78.7000","Нет",20000,"09:33:00","(916)759 09 46; (495)434 97 79ул. Большая Тульская, д. 2"]
[null,null,null,null,null,null,null,null,"Адрес: ул. Большая Тульская, д. 2"]
[null,null,null,null,null,null,null,null,"Метро:"]
[null,null,null,null,null,null,null,null,"Телефон: (916)759 09 46; (495)434 97 79"]
[null,null,null,null,null,null,null,null,"Комиссия: Нет."]
[null,"ООО ИКБ \"ЛОГОС\" оквку \"Ленинский 66\" ",null,"77.5000","78.5000","Нет",1000,"09:32:59","(499)133 43 45Ленинский проспект, д. 66Академическая, Университет"]
[null,null,null,null,null,null,null,null,"Адрес: Ленинский проспект, д. 66"]
[null,null,null,null,null,null,null,null,"Метро: Академическая, Университет"]
[null,null,null,null,null,null,null,null,"Телефон: (499)133 43 45"]
[null,null,null,null,null,null,null,null,"Комиссия: Нет."]
[null,"ООО ИКБ \"ЛОГОС\" оквку \"Ленинский 66\" ",null,"77.7000","78.5000","Нет",10000,"09:32:59","(499)133 43 45Ленинский проспект, д. 66Академическая, Университет"]
[null,null,null,null,null,null,null,null,"Адрес: Ленинский проспект, д. 66"]
[null,null,null,null,null,null,null,null,"Метро: Академическая, Университет"]
[null,null,null,null,null,null,null,null,"Телефон: (499)133 43 45"]
[null,null,null,null,null,null,null,null,"Комиссия: Нет."]
[null,"ООО ИКБ \"ЛОГОС\" оквку \"Ленинский 66\" ",null,"77.7000","78.5000","Нет",100000,"09:32:59","(499)133 43 45Ленинский проспект, д. 66Академическая, Университет"]
[null,null,null,null,null,null,null,null,"Адрес: Ленинский проспект, д. 66"]
[null,null,null,null,null,null,null,null,"Метро: Академическая, Университет"]
[null,null,null,null,null,null,null,null,"Телефон: (499)133 43 45"]
[null,null,null,null,null,null,null,null,"Комиссия: Нет."]
[null,"АО \"Гринкомбанк\" оквку \"Медведково\"","м. Медведково","77.7099",null,"Нет",5001,"09:32:58","(8985)430 04 07ул. Широкая, владение 11АМедведково"]
[null,null,null,null,null,null,null,null,"Адрес: ул. Широкая, владение 11А"]
[null,null,null,null,null,null,null,null,"Метро: Медведково"]
[null,null,null,null,null,null,null,null,"Телефон: (8985)430 04 07"]
[null,null,null,null,null,null,null,null,"Комиссия: Нет."]
[null,"АО \"Гринкомбанк\" оквку \"Медведково\"","м. Медведково","77.7099",null,"Нет",20000,"09:32:58","(8985)430 04 07ул. Широкая, владение 11АМедведково"]
[null,null,null,null,null,null,null,null,"Адрес: ул. Широкая, владение 11А"]
[null,null,null,null,null,null,null,null,"Метро: Медведково"]
[null,null,null,null,null,null,null,null,"Телефон: (8985)430 04 07"]
[null,null,null,null,null,null,null,null,"Комиссия: Нет."]
[null,"КБ \"РИАЛ-КРЕДИТ\" (ООО) оквку \"Митинская\" ",null,"77.7000","78.2000","Нет",1000,"09:32:58","(8925)929 61 33; (8925)929 61 33ул. Митинская, дом 36, корп. 2Митино"]
[null,null,null,null,null,null,null,null,"Адрес: ул. Митинская, дом 36, корп. 2"]
[null,null,null,null,null,null,null,null,"Метро: Митино"]
[null,null,null,null,null,null,null,null,"Телефон: (8925)929 61 33; (8925)929 61 33"]
[null,null,null,null,null,null,null,null,"Комиссия: Нет."]
[null,"КБ \"РИАЛ-КРЕДИТ\" (ООО) оквку \"Митинская\" ",null,"77.7000","78.2000","Нет",5000,"09:32:58","(8925)929 61 33; (8925)929 61 33ул. Митинская, дом 36, корп. 2Митино"]
[null,null,null,null,null,null,null,null,"Адрес: ул. Митинская, дом 36, корп. 2"]
[null,null,null,null,null,null,null,null,"Метро: Митино"]
[null,null,null,null,null,null,null,null,"Телефон: (8925)929 61 33; (8925)929 61 33"]
[null,null,null,null,null,null,null,null,"Комиссия: Нет."]
[null,"ООО КБ \"Стар Альянс\" оквку № 20 ",null,"77.2000","79.3000","Нет",10000,"09:32:58","(8968)771 42 42; (8968)771 43 43ул. Маршала Бирюзова, д. 16Октябрьское поле"]
[null,null,null,null,null,null,null,null,"Адрес: ул. Маршала Бирюзова, д. 16"]
[null,null,null,null,null,null,null,null,"Метро: Октябрьское поле"]
[null,null,null,null,null,null,null,null,"Телефон: (8968)771 42 42; (8968)771 43 43"]
[null,null,null,null,null,null,null,null,"Комиссия: Нет."]
[null,"ООО КБ \"Стар Альянс\" оквку № 20 ",null,"77.2000","79.3000","Нет",50000,"09:32:58","(8968)771 42 42; (8968)771 43 43ул. Маршала Бирюзова, д. 16Октябрьское поле"]
[null,null,null,null,null,null,null,null,"Адрес: ул. Маршала Бирюзова, д. 16"]
[null,null,null,null,null,null,null,null,"Метро: Октябрьское поле"]
[null,null,null,null,null,null,null,null,"Телефон: (8968)771 42 42; (8968)771 43 43"]
[null,null,null,null,null,null,null,null,"Комиссия: Нет."]
[null,"КБ \"ДС-Банк\" (ООО) оквку № 24 \"Динамо\" ","м. Динамо","77.7099",null,"Нет",5001,"09:32:58","(8499)408 23 73Старый Петровско-Разумовский проезд, д. 1/23, стр. 1Динамо, Дмитровская"]
[null,null,null,null,null,null,null,null,"Адрес: Старый Петровско-Разумовский проезд, д. 1/23, стр. 1"]
[null,null,null,null,null,null,null,null,"Метро: Динамо, Дмитровская"]
[null,null,null,null,null,null,null,null,"Телефон: (8499)408 23 73"]
[null,null,null,null,null,null,null,null,"Комиссия: Нет."]
[null,"КБ \"ДС-Банк\" (ООО) оквку № 24 \"Динамо\" ","м. Динамо","77.7099",null,"Нет",20001,"09:32:58","(8499)408 23 73Старый Петровско-Разумовский проезд, д. 1/23, стр. 1Динамо, Дмитровская"]
[null,null,null,null,null,null,null,null,"Адрес: Старый Петровско-Разумовский проезд, д. 1/23, стр. 1"]
[null,null,null,null,null,null,null,null,"Метро: Динамо, Дмитровская"]
[null,null,null,null,null,null,null,null,"Телефон: (8499)408 23 73"]
[null,null,null,null,null,null,null,null,"Комиссия: Нет."]
[null,"ОАО КБ \"ЮНИСТРИМ\" оквку № 243",null,"77.5000","79.0000","Нет",15000,"09:32:57","(499)252 12 56; (8909)690 27 73ул. Красная Пресня, д. 44, стр. 1Улица 1905 года"]
[null,null,null,null,null,null,null,null,"Адрес: ул. Красная Пресня, д. 44, стр. 1"]
[null,null,null,null,null,null,null,null,"Метро: Улица 1905 года"]
[null,null,null,null,null,null,null,null,"Телефон: (499)252 12 56; (8909)690 27 73"]
[null,null,null,null,null,null,null,null,"Комиссия: Нет."]
[null,"ПАО АКБ \"Акцент\" ОКВКУ \"МОЖАЙСКОЕ 25\"","Можайск. шоссе 25","77.7099","78.9950","Нет",10000,"09:32:57","(926)111 25 47; (985)970 38 68Можайское шоссе, д. 25Киевская (Арбатско-Покровская), Кунцевская (Филёвская), Славянский бульвар"]
[null,null,null,null,null,null,null,null,"Адрес: Можайское шоссе, д. 25"]
[null,null,null,null,null,null,null,null,"Метро: Киевская (Арбатско-Покровская), Кунцевская (Филёвская), Славянский бульвар"]
[null,null,null,null,null,null,null,null,"Телефон: (926)111 25 47; (985)970 38 68"]
[null,null,null,null,null,null,null,null,"Комиссия: Нет."]
[null,"ПАО АКБ \"Акцент\" ОКВКУ \"МОЖАЙСКОЕ 25\"","Можайск. шоссе 25","77.7099","78.9950","Нет",100000,"09:32:57","(926)111 25 47; (985)970 38 68Можайское шоссе, д. 25Киевская (Арбатско-Покровская), Кунцевская (Филёвская), Славянский бульвар"]
[null,null,null,null,null,null,null,null,"Адрес: Можайское шоссе, д. 25"]
[null,null,null,null,null,null,null,null,"Метро: Киевская (Арбатско-Покровская), Кунцевская (Филёвская), Славянский бульвар"]
[null,null,null,null,null,null,null,null,"Телефон: (926)111 25 47; (985)970 38 68"]
[null,null,null,null,null,null,null,null,"Комиссия: Нет."]
[null,"ОАО КБ \"ЮНИСТРИМ\" оквку № 279","м. Октябрьская","77.5099","78.5915","Нет",1000,"09:32:57","(499)990 09 25; (916)837 70 03Калужская пл., д. 1, стр. 7Октябрьская (Кольцевая)"]
[null,null,null,null,null,null,null,null,"Адрес: Калужская пл., д. 1, стр. 7"]
[null,null,null,null,null,null,null,null,"Метро: Октябрьская (Кольцевая)"]
[null,null,null,null,null,null,null,null,"Телефон: (499)990 09 25; (916)837 70 03"]
[null,null,null,null,null,null,null,null,"Комиссия: Нет."]
[null,"ОАО КБ \"ЮНИСТРИМ\" оквку № 279","м. Октябрьская","77.5099","78.5915","Нет",10000,"09:32:57","(499)990 09 25; (916)837 70 03Калужская пл., д. 1, стр. 7Октябрьская (Кольцевая)"]
[null,null,null,null,null,null,null,null,"Адрес: Калужская пл., д. 1, стр. 7"]
[null,null,null,null,null,null,null,null,"Метро: Октябрьская (Кольцевая)"]
[null,null,null,null,null,null,null,null,"Телефон: (499)990 09 25; (916)837 70 03"]
[null,null,null,null,null,null,null,null,"Комиссия: Нет."]
[null,"ОАО КБ \"ЮНИСТРИМ\" оквку № 279","м. Октябрьская","77.5099","78.5915","Нет",50000,"09:32:57","(499)990 09 25; (916)837 70 03Калужская пл., д. 1, стр. 7Октябрьская (Кольцевая)"]
[null,null,null,null,null,null,null,null,"Адрес: Калужская пл., д. 1, стр. 7"]
[null,null,null,null,null,null,null,null,"Метро: Октябрьская (Кольцевая)"]
[null,null,null,null,null,null,null,null,"Телефон: (499)990 09 25; (916)837 70 03"]
[null,null,null,null,null,null,null,null,"Комиссия: Нет."]
[null,"КБ \"РИАЛ-КРЕДИТ\" (ООО) оквку \"Маршала Василевского\"","м-н \"ОЛИВЬЕ\"","77.5100","78.5000","Нет",10000,"09:32:57","(8499)193 57 50; (8915)315 21 61ул. Маршала Василевского, дом 17Щукинская"]
[null,null,null,null,null,null,null,null,"Адрес: ул. Маршала Василевского, дом 17"]
[null,null,null,null,null,null,null,null,"Метро: Щукинская"]
[null,null,null,null,null,null,null,null,"Телефон: (8499)193 57 50; (8915)315 21 61"]
[null,null,null,null,null,null,null,null,"Комиссия: Нет."]
[null,"КБ \"РИАЛ-КРЕДИТ\" (ООО) оквку \"Маршала Василевского\"","м-н \"ОЛИВЬЕ\"","77.5100","78.5000","Нет",20000,"09:32:57","(8499)193 57 50; (8915)315 21 61ул. Маршала Василевского, дом 17Щукинская"]
[null,null,null,null,null,null,null,null,"Адрес: ул. Маршала Василевского, дом 17"]
[null,null,null,null,null,null,null,null,"Метро: Щукинская"]
[null,null,null,null,null,null,null,null,"Телефон: (8499)193 57 50; (8915)315 21 61"]
[null,null,null,null,null,null,null,null,"Комиссия: Нет."]
[null,"АО БАНК \"ТГБ\" ДО \"СЕРПУХОВСКИЙ ВАЛ\" ","м. Шаболовская","77.8500","79.0500","Нет",10000,"09:32:56","(8925)740 62 02; (8985)762 72 00; (8903)688 22 11ул. Серпуховский Вал, д. 26Тульская, Шаболовская"]
[null,null,null,null,null,null,null,null,"Адрес: ул. Серпуховский Вал, д. 26"]
[null,null,null,null,null,null,null,null,"Метро: Тульская, Шаболовская"]
[null,null,null,null,null,null,null,null,"Телефон: (8925)740 62 02; (8985)762 72 00; (8903)688 22 11"]
[null,null,null,null,null,null,null,null,"Комиссия: Нет."]
[null,"АО БАНК \"ТГБ\" ДО \"СЕРПУХОВСКИЙ ВАЛ\" ","м. Шаболовская","78.0500","78.9900","Нет",100000,"09:32:56","(8925)740 62 02; (8985)762 72 00; (8903)688 22 11ул. Серпуховский Вал, д. 26Тульская, Шаболовская"]
[null,null,null,null,null,null,null,null,"Адрес: ул. Серпуховский Вал, д. 26"]
[null,null,null,null,null,null,null,null,"Метро: Тульская, Шаболовская"]
[null,null,null,null,null,null,null,null,"Телефон: (8925)740 62 02; (8985)762 72 00; (8903)688 22 11"]
[null,null,null,null,null,null,null,null,"Комиссия: Нет."]
[null,"АО \"НС Банк\" ДО \"Дмитров\" ",null,"77.0800","79.0800","Нет",1,"09:32:54","(495)993 95 22; (49622)4 29 33Московская область, г. Дмитров, ул. Профессиональная, д. 4Алтуфьево, Савёловская, Тимирязевская (Серпуховско-Тимирязевская)"]
[null,null,null,null,null,null,null,null,"Адрес: Московская область, г. Дмитров, ул. Профессиональная, д. 4"]
[null,null,null,null,null,null,null,null,"Метро: Алтуфьево, Савёловская, Тимирязевская (Серпуховско-Тимирязевская)"]
[null,null,null,null,null,null,null,null,"Телефон: (495)993 95 22; (49622)4 29 33"]
[null,null,null,null,null,null,null,null,"Комиссия: Нет."]
[null,"АО \"НС Банк\" ДО \"Дмитров\" ",null,"77.1300","79.0300","Нет",10000,"09:32:54","(495)993 95 22; (49622)4 29 33Московская область, г. Дмитров, ул. Профессиональная, д. 4Алтуфьево, Савёловская, Тимирязевская (Серпуховско-Тимирязевская)"]
[null,null,null,null,null,null,null,null,"Адрес: Московская область, г. Дмитров, ул. Профессиональная, д. 4"]
[null,null,null,null,null,null,null,null,"Метро: Алтуфьево, Савёловская, Тимирязевская (Серпуховско-Тимирязевская)"]
[null,null,null,null,null,null,null,null,"Телефон: (495)993 95 22; (49622)4 29 33"]
[null,null,null,null,null,null,null,null,"Комиссия: Нет."]
[null,"АО \"НС Банк\" ДО \"Дмитров\" ",null,"77.1600","79.0000","Нет",20000,"09:32:54","(495)993 95 22; (49622)4 29 33Московская область, г. Дмитров, ул. Профессиональная, д. 4Алтуфьево, Савёловская, Тимирязевская (Серпуховско-Тимирязевская)"]
[null,null,null,null,null,null,null,null,"Адрес: Московская область, г. Дмитров, ул. Профессиональная, д. 4"]
[null,null,null,null,null,null,null,null,"Метро: Алтуфьево, Савёловская, Тимирязевская (Серпуховско-Тимирязевская)"]
[null,null,null,null,null,null,null,null,"Телефон: (495)993 95 22; (49622)4 29 33"]
[null,null,null,null,null,null,null,null,"Комиссия: Нет."]
[null,"АО КБ \"ЮНИСТРИМ\" оквку № 232","м. Павелецкая","77.7100","79.5000","Нет",10000,"09:32:54","(495)953 66 76ул. Валовая, д. 8/18Павелецкая (Замоскворецкая), Павелецкая (Кольцевая)"]
[null,null,null,null,null,null,null,null,"Адрес: ул. Валовая, д. 8/18"]
[null,null,null,null,null,null,null,null,"Метро: Павелецкая (Замоскворецкая), Павелецкая (Кольцевая)"]
[null,null,null,null,null,null,null,null,"Телефон: (495)953 66 76"]
[null,null,null,null,null,null,null,null,"Комиссия: Нет."]
[null,"АО КБ \"ЮНИСТРИМ\" оквку № 232","м. Павелецкая","77.7100","79.5000","Нет",50000,"09:32:54","(495)953 66 76ул. Валовая, д. 8/18Павелецкая (Замоскворецкая), Павелецкая (Кольцевая)"]
[null,null,null,null,null,null,null,null,"Адрес: ул. Валовая, д. 8/18"]
[null,null,null,null,null,null,null,null,"Метро: Павелецкая (Замоскворецкая), Павелецкая (Кольцевая)"]
[null,null,null,null,null,null,null,null,"Телефон: (495)953 66 76"]
[null,null,null,null,null,null,null,null,"Комиссия: Нет."]
[null,"АО КБ \"ЮНИСТРИМ\" оквку № 297","Пресненский вал 3","77.5099","78.5501","Нет",1000,"09:32:54","(8968)082 07 07ул. Пресненский вал, д. 3, стр. 1Улица 1905 года"]
[null,null,null,null,null,null,null,null,"Адрес: ул. Пресненский вал, д. 3, стр. 1"]
[null,null,null,null,null,null,null,null,"Метро: Улица 1905 года"]
[null,null,null,null,null,null,null,null,"Телефон: (8968)082 07 07"]
[null,null,null,null,null,null,null,null,"Комиссия: Нет."]
[null,"АО КБ \"ЮНИСТРИМ\" оквку № 297","Пресненский вал 3","77.7099","78.1401","Нет",10000,"09:32:54","(8968)082 07 07ул. Пресненский вал, д. 3, стр. 1Улица 1905 года"]
[null,null,null,null,null,null,null,null,"Адрес: ул. Пресненский вал, д. 3, стр. 1"]
[null,null,null,null,null,null,null,null,"Метро: Улица 1905 года"]
[null,null,null,null,null,null,null,null,"Телефон: (8968)082 07 07"]
[null,null,null,null,null,null,null,null,"Комиссия: Нет."]
[null,"АО КБ \"ЮНИСТРИМ\" оквку № 297","Пресненский вал 3","77.7099","78.1401","Нет",30000,"09:32:54","(8968)082 07 07ул. Пресненский вал, д. 3, стр. 1Улица 1905 года"]
[null,null,null,null,null,null,null,null,"Адрес: ул. Пресненский вал, д. 3, стр. 1"]
[null,null,null,null,null,null,null,null,"Метро: Улица 1905 года"]
[null,null,null,null,null,null,null,null,"Телефон: (8968)082 07 07"]
[null,null,null,null,null,null,null,null,"Комиссия: Нет."]
[null,"АКБ \"НОВЫЙ КРЕДИТНЫЙ СОЮЗ\" (ЗАО) оквку № 18 (АЛЫЕ ПАРУСА) ","\"AЛЫЕ ПAРУСA\"","77.0000","79.0000","Нет",500,"09:32:53","(495)961 57 68; (495)961 57 68ул. Авиационная, д. 66Щукинская"]
[null,null,null,null,null,null,null,null,"Адрес: ул. Авиационная, д. 66"]
[null,null,null,null,null,null,null,null,"Метро: Щукинская"]
[null,null,null,null,null,null,null,null,"Телефон: (495)961 57 68; (495)961 57 68"]
[null,null,null,null,null,null,null,null,"Комиссия: Нет."]
[null,"АКБ \"НОВЫЙ КРЕДИТНЫЙ СОЮЗ\" (ЗАО) оквку № 18 (АЛЫЕ ПАРУСА) ","\"AЛЫЕ ПAРУСA\"","77.0000","79.0000","Нет",10000,"09:32:53","(495)961 57 68; (495)961 57 68ул. Авиационная, д. 66Щукинская"]
[null,null,null,null,null,null,null,null,"Адрес: ул. Авиационная, д. 66"]
[null,null,null,null,null,null,null,null,"Метро: Щукинская"]
[null,null,null,null,null,null,null,null,"Телефон: (495)961 57 68; (495)961 57 68"]
[null,null,null,null,null,null,null,null,"Комиссия: Нет."]
[null,"АКБ \"НОВЫЙ КРЕДИТНЫЙ СОЮЗ\" (ЗАО) оквку № 18 (АЛЫЕ ПАРУСА) ","\"AЛЫЕ ПAРУСA\"","77.0000","79.0000","Нет",20000,"09:32:53","(495)961 57 68; (495)961 57 68ул. Авиационная, д. 66Щукинская"]
[null,null,null,null,null,null,null,null,"Адрес: ул. Авиационная, д. 66"]
[null,null,null,null,null,null,null,null,"Метро: Щукинская"]
[null,null,null,null,null,null,null,null,"Телефон: (495)961 57 68; (495)961 57 68"]
[null,null,null,null,null,null,null,null,"Комиссия: Нет."]
[null,"КБ \"ДС-Банк\" (ООО) оквку № 19 \"Медведково\" ",null,"77.0100","78.6900","Нет",1000,"09:32:53","(495)797 56 74; (967)064 99 83ул. Широкая, д. 12БМедведково"]
[null,null,null,null,null,null,null,null,"Адрес: ул. Широкая, д. 12Б"]
[null,null,null,null,null,null,null,null,"Метро: Медведково"]
[null,null,null,null,null,null,null,null,"Телефон: (495)797 56 74; (967)064 99 83"]
[null,null,null,null,null,null,null,null,"Комиссия: Нет."]
[null,"КБ \"ДС-Банк\" (ООО) оквку № 19 \"Медведково\" ",null,"77.0100","78.6900","Нет",10000,"09:32:53","(495)797 56 74; (967)064 99 83ул. Широкая, д. 12БМедведково"]
[null,null,null,null,null,null,null,null,"Адрес: ул. Широкая, д. 12Б"]
[null,null,null,null,null,null,null,null,"Метро: Медведково"]
[null,null,null,null,null,null,null,null,"Телефон: (495)797 56 74; (967)064 99 83"]
[null,null,null,null,null,null,null,null,"Комиссия: Нет."]
[null,"ООО КБ \"ФПК\" оквку № 22 \"Снежная\"",null,"78.0549","78.4951","Нет",10000,"09:32:52","(8916)637 17 17ул. Снежная, д. 16, корп. 1Ботанический сад, Свиблово"]
[null,null,null,null,null,null,null,null,"Адрес: ул. Снежная, д. 16, корп. 1"]
[null,null,null,null,null,null,null,null,"Метро: Ботанический сад, Свиблово"]
[null,null,null,null,null,null,null,null,"Телефон: (8916)637 17 17"]
[null,null,null,null,null,null,null,null,"Комиссия: Нет."]
[null,"ООО КБ \"ФПК\" оквку № 22 \"Снежная\"",null,"78.0549","78.4951","Нет",50000,"09:32:52","(8916)637 17 17ул. Снежная, д. 16, корп. 1Ботанический сад, Свиблово"]
[null,null,null,null,null,null,null,null,"Адрес: ул. Снежная, д. 16, корп. 1"]
[null,null,null,null,null,null,null,null,"Метро: Ботанический сад, Свиблово"]
[null,null,null,null,null,null,null,null,"Телефон: (8916)637 17 17"]
[null,null,null,null,null,null,null,null,"Комиссия: Нет."]
[null,"АКБ \"МИРЪ\" (ОАО) ДО \"Кутузовский\"","Кутузовский пр.27","77.5000","79.2000","Нет",10000,"09:32:52","(8964)728 77 33; (8964)728 33 77Кутузовский проспект, д. 27Кутузовская, Студенческая"]
[null,null,null,null,null,null,null,null,"Адрес: Кутузовский проспект, д. 27"]
[null,null,null,null,null,null,null,null,"Метро: Кутузовская, Студенческая"]
[null,null,null,null,null,null,null,null,"Телефон: (8964)728 77 33; (8964)728 33 77"]
[null,null,null,null,null,null,null,null,"Комиссия: Нет."]
[null,"АКБ \"МИРЪ\" (ОАО) ДО \"Кутузовский\"","Кутузовский пр.27","77.5000","79.2000","Нет",100000,"09:32:52","(8964)728 77 33; (8964)728 33 77Кутузовский проспект, д. 27Кутузовская, Студенческая"]
[null,null,null,null,null,null,null,null,"Адрес: Кутузовский проспект, д. 27"]
[null,null,null,null,null,null,null,null,"Метро: Кутузовская, Студенческая"]
[null,null,null,null,null,null,null,null,"Телефон: (8964)728 77 33; (8964)728 33 77"]
[null,null,null,null,null,null,null,null,"Комиссия: Нет."]
[null,"АО БАНК \"ТГБ\" оквку \"Новоарбатская\"","ТД Новоарбатский","77.5100","78.7000","Нет",10000,"09:32:50","(495)434 97 79; (916)759 09 46ул. Новый Арбат, д. 11, стр. 1Арбатская (Арбатско-Покровская), Арбатская (Филевская)"]
[null,null,null,null,null,null,null,null,"Адрес: ул. Новый Арбат, д. 11, стр. 1"]
[null,null,null,null,null,null,null,null,"Метро: Арбатская (Арбатско-Покровская), Арбатская (Филевская)"]
[null,null,null,null,null,null,null,null,"Телефон: (495)434 97 79; (916)759 09 46"]
[null,null,null,null,null,null,null,null,"Комиссия: Нет."]
[null,"АО БАНК \"ТГБ\" оквку \"Новоарбатская\"","ТД Новоарбатский","77.5100","78.7000","Нет",20000,"09:32:50","(495)434 97 79; (916)759 09 46ул. Новый Арбат, д. 11, стр. 1Арбатская (Арбатско-Покровская), Арбатская (Филевская)"]
[null,null,null,null,null,null,null,null,"Адрес: ул. Новый Арбат, д. 11, стр. 1"]
[null,null,null,null,null,null,null,null,"Метро: Арбатская (Арбатско-Покровская), Арбатская (Филевская)"]
[null,null,null,null,null,null,null,null,"Телефон: (495)434 97 79; (916)759 09 46"]
[null,null,null,null,null,null,null,null,"Комиссия: Нет."]
[null,"НКО \"Континент Финанс\" (ПАО) оквку № 6 \"Алексеевская\"",null,"77.5000","78.5000","Нет",10000,"09:32:50","(905)721 53 90Проспект мира, д. 112Алексеевская"]
[null,null,null,null,null,null,null,null,"Адрес: Проспект мира, д. 112"]
[null,null,null,null,null,null,null,null,"Метро: Алексеевская"]
[null,null,null,null,null,null,null,null,"Телефон: (905)721 53 90"]
[null,null,null,null,null,null,null,null,"Комиссия: Нет."]
[null,"ООО ИКБ \"ЛОГОС\" оквку \"Новослободская 10\"",null,"77.5050","79.0000","Нет",1000,"09:32:50","(926)729 73 28ул. Новослободская 10/9, стр. 1Менделеевская, Новослободская"]
[null,null,null,null,null,null,null,null,"Адрес: ул. Новослободская 10/9, стр. 1"]
[null,null,null,null,null,null,null,null,"Метро: Менделеевская, Новослободская"]
[null,null,null,null,null,null,null,null,"Телефон: (926)729 73 28"]
[null,null,null,null,null,null,null,null,"Комиссия: Нет."]
[null,"ООО ИКБ \"ЛОГОС\" оквку \"Новослободская 10\"",null,"78.0500","79.0000","Нет",10000,"09:32:50","(926)729 73 28ул. Новослободская 10/9, стр. 1Менделеевская, Новослободская"]
[null,null,null,null,null,null,null,null,"Адрес: ул. Новослободская 10/9, стр. 1"]
[null,null,null,null,null,null,null,null,"Метро: Менделеевская, Новослободская"]
[null,null,null,null,null,null,null,null,"Телефон: (926)729 73 28"]
[null,null,null,null,null,null,null,null,"Комиссия: Нет."]
[null,"ООО КБ \"ФПК\" ОКВКУ № 27 \"Академическая\"","м. Академическая","77.0099",null,"Нет",10000,"09:32:49","(8926)864 04 88; (8926)539 29 70ул. Дмитрия Ульянова, д. 24Академическая, Ленинский проспект, Профсоюзная"]
[null,null,null,null,null,null,null,null,"Адрес: ул. Дмитрия Ульянова, д. 24"]
[null,null,null,null,null,null,null,null,"Метро: Академическая, Ленинский проспект, Профсоюзная"]
[null,null,null,null,null,null,null,null,"Телефон: (8926)864 04 88; (8926)539 29 70"]
[null,null,null,null,null,null,null,null,"Комиссия: Нет."]
[null,"ООО КБ \"ФПК\" ОКВКУ № 27 \"Академическая\"","м. Академическая","77.0099",null,"Нет",100000,"09:32:49","(8926)864 04 88; (8926)539 29 70ул. Дмитрия Ульянова, д. 24Академическая, Ленинский проспект, Профсоюзная"]
[null,null,null,null,null,null,null,null,"Адрес: ул. Дмитрия Ульянова, д. 24"]
[null,null,null,null,null,null,null,null,"Метро: Академическая, Ленинский проспект, Профсоюзная"]
[null,null,null,null,null,null,null,null,"Телефон: (8926)864 04 88; (8926)539 29 70"]
[null,null,null,null,null,null,null,null,"Комиссия: Нет."]
[null,"ООО ИКБ \"ЛОГОС\" оквку \"Киевский\"",null,"77.5000","78.5000","Нет",1000,"09:32:48","(8926)334 78 86; (8964)597 62 28площадь Киевского вокзала, д. 2Киевская (Кольцевая)"]
[null,null,null,null,null,null,null,null,"Адрес: площадь Киевского вокзала, д. 2"]
[null,null,null,null,null,null,null,null,"Метро: Киевская (Кольцевая)"]
[null,null,null,null,null,null,null,null,"Телефон: (8926)334 78 86; (8964)597 62 28"]
[null,null,null,null,null,null,null,null,"Комиссия: Нет."]
[null,"ООО ИКБ \"ЛОГОС\" оквку \"Киевский\"",null,"77.5000","78.5000","Нет",20000,"09:32:48","(8926)334 78 86; (8964)597 62 28площадь Киевского вокзала, д. 2Киевская (Кольцевая)"]
[null,null,null,null,null,null,null,null,"Адрес: площадь Киевского вокзала, д. 2"]
[null,null,null,null,null,null,null,null,"Метро: Киевская (Кольцевая)"]
[null,null,null,null,null,null,null,null,"Телефон: (8926)334 78 86; (8964)597 62 28"]
[null,null,null,null,null,null,null,null,"Комиссия: Нет."]
[null,"ООО КБ \"ФПК\" ОКВКУ \"Медведково\"",null,"78.0049","78.7951","Нет",10000,"09:32:48","(8915)385 42 47ул. Грекова, д. 3ж, стр. 2Медведково"]
[null,null,null,null,null,null,null,null,"Адрес: ул. Грекова, д. 3ж, стр. 2"]
[null,null,null,null,null,null,null,null,"Метро: Медведково"]
[null,null,null,null,null,null,null,null,"Телефон: (8915)385 42 47"]
[null,null,null,null,null,null,null,null,"Комиссия: Нет."]
[null,"ООО КБ \"ФПК\" ОКВКУ \"Медведково\"",null,"78.0049","78.7951","Нет",50000,"09:32:48","(8915)385 42 47ул. Грекова, д. 3ж, стр. 2Медведково"]
[null,null,null,null,null,null,null,null,"Адрес: ул. Грекова, д. 3ж, стр. 2"]
[null,null,null,null,null,null,null,null,"Метро: Медведково"]
[null,null,null,null,null,null,null,null,"Телефон: (8915)385 42 47"]
[null,null,null,null,null,null,null,null,"Комиссия: Нет."]
[null,"АО БАНК \"ТГБ\" оквку \"м. Белорусская, ул. Грузинский Вал, д. 23-25, стр. 2 (24 часа)\"","м. Белорусская","77.9099","78.6000","Нет",1000,"09:32:46","(499)251 05 13; (963)924 06 31ул. Грузинский Вал, д. 23-25, стр. 2Белорусская (Замоскворецкая), Белорусская (Кольцевая), Улица 1905 года"]
[null,null,null,null,null,null,null,null,"Адрес: ул. Грузинский Вал, д. 23-25, стр. 2"]
[null,null,null,null,null,null,null,null,"Метро: Белорусская (Замоскворецкая), Белорусская (Кольцевая), Улица 1905 года"]
[null,null,null,null,null,null,null,null,"Телефон: (499)251 05 13; (963)924 06 31"]
[null,null,null,null,null,null,null,null,"Комиссия: Нет."]
[null,"АО БАНК \"ТГБ\" оквку \"м. Белорусская, ул. Грузинский Вал, д. 23-25, стр. 2 (24 часа)\"","м. Белорусская","78.0099","78.5000","Нет",10000,"09:32:46","(499)251 05 13; (963)924 06 31ул. Грузинский Вал, д. 23-25, стр. 2Белорусская (Замоскворецкая), Белорусская (Кольцевая), Улица 1905 года"]
[null,null,null,null,null,null,null,null,"Адрес: ул. Грузинский Вал, д. 23-25, стр. 2"]
[null,null,null,null,null,null,null,null,"Метро: Белорусская (Замоскворецкая), Белорусская (Кольцевая), Улица 1905 года"]
[null,null,null,null,null,null,null,null,"Телефон: (499)251 05 13; (963)924 06 31"]
[null,null,null,null,null,null,null,null,"Комиссия: Нет."]
[null,"АО БАНК \"ТГБ\" оквку \"м. Белорусская, ул. Грузинский Вал, д. 23-25, стр. 2 (24 часа)\"","м. Белорусская","78.0099","78.5000","Нет",100000,"09:32:46","(499)251 05 13; (963)924 06 31ул. Грузинский Вал, д. 23-25, стр. 2Белорусская (Замоскворецкая), Белорусская (Кольцевая), Улица 1905 года"]
[null,null,null,null,null,null,null,null,"Адрес: ул. Грузинский Вал, д. 23-25, стр. 2"]
[null,null,null,null,null,null,null,null,"Метро: Белорусская (Замоскворецкая), Белорусская (Кольцевая), Улица 1905 года"]
[null,null,null,null,null,null,null,null,"Телефон: (499)251 05 13; (963)924 06 31"]
[null,null,null,null,null,null,null,null,"Комиссия: Нет."]
[null,"ОАО КБ \"ЮНИСТРИМ\" оквку № 264","26 Бакинских ком.","77.4100","78.8900","Нет",10000,"09:32:45","(985)761 00 55ул. 26 Бакинских комиссаров, д. 2\"Б\"Беляево, Юго-Западная"]
[null,null,null,null,null,null,null,null,"Адрес: ул. 26 Бакинских комиссаров, д. 2\"Б\""]
[null,null,null,null,null,null,null,null,"Метро: Беляево, Юго-Западная"]
[null,null,null,null,null,null,null,null,"Телефон: (985)761 00 55"]
[null,null,null,null,null,null,null,null,"Комиссия: Нет."]
[null,"ОАО КБ \"ЮНИСТРИМ\" оквку № 264","26 Бакинских ком.","77.4100","78.8900","Нет",50000,"09:32:45","(985)761 00 55ул. 26 Бакинских комиссаров, д. 2\"Б\"Беляево, Юго-Западная"]
[null,null,null,null,null,null,null,null,"Адрес: ул. 26 Бакинских комиссаров, д. 2\"Б\""]
[null,null,null,null,null,null,null,null,"Метро: Беляево, Юго-Западная"]
[null,null,null,null,null,null,null,null,"Телефон: (985)761 00 55"]
[null,null,null,null,null,null,null,null,"Комиссия: Нет."]
[null,"АО КБ \"ЮНИСТРИМ\" оквку № 244 м-н \"Наталка\"","м-н \"НАТАЛКА\"","77.6000","78.9000","Нет",1000,"09:32:44","(8495)301 32 93; (8903)776 57 73Свободный пр-т, д.18Новогиреево"]
[null,null,null,null,null,null,null,null,"Адрес: Свободный пр-т, д.18"]
[null,null,null,null,null,null,null,null,"Метро: Новогиреево"]
[null,null,null,null,null,null,null,null,"Телефон: (8495)301 32 93; (8903)776 57 73"]
[null,null,null,null,null,null,null,null,"Комиссия: Нет."]
[null,"АО КБ \"ЮНИСТРИМ\" оквку № 244 м-н \"Наталка\"","м-н \"НАТАЛКА\"","77.7000","78.8000","Нет",10000,"09:32:44","(8495)301 32 93; (8903)776 57 73Свободный пр-т, д.18Новогиреево"]
[null,null,null,null,null,null,null,null,"Адрес: Свободный пр-т, д.18"]
[null,null,null,null,null,null,null,null,"Метро: Новогиреево"]
[null,null,null,null,null,null,null,null,"Телефон: (8495)301 32 93; (8903)776 57 73"]
[null,null,null,null,null,null,null,null,"Комиссия: Нет."]
[null,"АО КБ \"ЮНИСТРИМ\" оквку № 244 м-н \"Наталка\"","м-н \"НАТАЛКА\"","77.8000","78.7000","Нет",50000,"09:32:44","(8495)301 32 93; (8903)776 57 73Свободный пр-т, д.18Новогиреево"]
[null,null,null,null,null,null,null,null,"Адрес: Свободный пр-т, д.18"]
[null,null,null,null,null,null,null,null,"Метро: Новогиреево"]
[null,null,null,null,null,null,null,null,"Телефон: (8495)301 32 93; (8903)776 57 73"]
[null,null,null,null,null,null,null,null,"Комиссия: Нет."]
[null,"АО БАНК \"ТГБ\" ДО \"Верхняя Радищевская\"",null,"78.0000","79.0000","Нет",10000,"09:32:43","(8495)915 36 35; (8916)388 60 47ул. Верхняя Радищевская, д. 22Китай-город (Таганско-Краснопресненская), Марксистская, Таганская (Кольцевая)"]
[null,null,null,null,null,null,null,null,"Адрес: ул. Верхняя Радищевская, д. 22"]
[null,null,null,null,null,null,null,null,"Метро: Китай-город (Таганско-Краснопресненская), Марксистская, Таганская (Кольцевая)"]
[null,null,null,null,null,null,null,null,"Телефон: (8495)915 36 35; (8916)388 60 47"]
[null,null,null,null,null,null,null,null,"Комиссия: Нет."]
[null,"АО БАНК \"ТГБ\" ДО \"Верхняя Радищевская\"",null,"78.0500","79.0000","Нет",50000,"09:32:43","(8495)915 36 35; (8916)388 60 47ул. Верхняя Радищевская, д. 22Китай-город (Таганско-Краснопресненская), Марксистская, Таганская (Кольцевая)"]
[null,null,null,null,null,null,null,null,"Адрес: ул. Верхняя Радищевская, д. 22"]
[null,null,null,null,null,null,null,null,"Метро: Китай-город (Таганско-Краснопресненская), Марксистская, Таганская (Кольцевая)"]
[null,null,null,null,null,null,null,null,"Телефон: (8495)915 36 35; (8916)388 60 47"]
[null,null,null,null,null,null,null,null,"Комиссия: Нет."]
[null,"КБ \"РИАЛ-КРЕДИТ\" (ООО) оквку \"Профсоюзная 109\"","\"Мир кожи и меха\"","77.5000","78.5000","Нет",10000,"09:32:43","(8495)429 61 31; (8915)315 21 61ул. Профсоюзная, д. 109, корп. 2Коньково"]
[null,null,null,null,null,null,null,null,"Адрес: ул. Профсоюзная, д. 109, корп. 2"]
[null,null,null,null,null,null,null,null,"Метро: Коньково"]
[null,null,null,null,null,null,null,null,"Телефон: (8495)429 61 31; (8915)315 21 61"]
[null,null,null,null,null,null,null,null,"Комиссия: Нет."]
[null,"КБ \"РИАЛ-КРЕДИТ\" (ООО) оквку \"Профсоюзная 109\"","\"Мир кожи и меха\"","77.5000","78.5000","Нет",20000,"09:32:43","(8495)429 61 31; (8915)315 21 61ул. Профсоюзная, д. 109, корп. 2Коньково"]
[null,null,null,null,null,null,null,null,"Адрес: ул. Профсоюзная, д. 109, корп. 2"]
[null,null,null,null,null,null,null,null,"Метро: Коньково"]
[null,null,null,null,null,null,null,null,"Телефон: (8495)429 61 31; (8915)315 21 61"]
[null,null,null,null,null,null,null,null,"Комиссия: Нет."]
[null,"АО РНКО \"ФБ\" оквку \"На Измайловском Валу\"","м. Семёновская","77.4001","78.8999","Нет",1000,"09:32:43","(8925)026 55 13; (8906)089 13 89ул. Измайловский Вал, дом 2Первомайская, Семёновская, Электрозаводская"]
[null,null,null,null,null,null,null,null,"Адрес: ул. Измайловский Вал, дом 2"]
[null,null,null,null,null,null,null,null,"Метро: Первомайская, Семёновская, Электрозаводская"]
[null,null,null,null,null,null,null,null,"Телефон: (8925)026 55 13; (8906)089 13 89"]
[null,null,null,null,null,null,null,null,"Комиссия: Нет."]
[null,"АО РНКО \"ФБ\" оквку \"На Измайловском Валу\"","м. Семёновская","77.7001","78.8999","Нет",10000,"09:32:43","(8925)026 55 13; (8906)089 13 89ул. Измайловский Вал, дом 2Первомайская, Семёновская, Электрозаводская"]
[null,null,null,null,null,null,null,null,"Адрес: ул. Измайловский Вал, дом 2"]
[null,null,null,null,null,null,null,null,"Метро: Первомайская, Семёновская, Электрозаводская"]
[null,null,null,null,null,null,null,null,"Телефон: (8925)026 55 13; (8906)089 13 89"]
[null,null,null,null,null,null,null,null,"Комиссия: Нет."]
["Показать выбранноеПоказать всеРаспечатать"]
["Выводить по",null,"на страницу"]
["Отзывы и предложения Вы можете выслать по адресу: rrnv-moscow@rbc.ru"]
["QuoteQuote",null,"Другие продукты РБК",null,null,null,"Воспользуйся этим!"]
["Лента аналитических комментариев","Прогнозы экономики России","Телеканал РБК","Спорт","Исследования","Стиль","Конкуренты"]
["Лента фондовых новостей","Фундаментальный анализ","Cnews","AutoNews","Рейтинги","Недвижимость","Собрания акционеров"]
["Прогнозы цен акций","База эмитентов","QuoteTerminal",null,null,"Семинары","Новости IPO"]
["Прогнозы цен сырьевых товаров","Биржевые котировки",null,null,null,null,"Слияния и поглощения"]
["Прогнозы курсов валют","Обзоры инвесткомпаний",null,null,null,null,"Конференции on-line"]
["Все замечания и пожелания присылайте на quote@rbc.ru.","Rambler's Top100"]
["Все права защищены и охраняются законом. © 1995 - 2016 РосБизнесКонсалтинг.","Новости портала | Карта сайта | Контакты"]
["Порядок и Условия использования данных © Dow Jones&Company. Информация об ограничениях © Reuters, © AP. Данные предоставлены © ComStock, Inc."]
["[*] Материалы блоков размещаются на правах рекламы"]
["Подробнее о соблюдении авторских прав и размещении рекламы. Любое использование материалов допускается только с указанием в качестве источника информации портала Quote.ru. Гиперссылка обязательна."]
["Все информационные ресурсы проекта Quote.rbc.ru имеют исключительно информативные цели и не являются публичной офертой к купле/продаже каких-либо ценных бумаг или осуществлению любых иных инвестиций."]
["Информация, содержащаяся на страницах портала Quote.rbc.ru, была получена из источников, которые редакция Quote.rbc.ru считает заслуживающими доверия. При этом редакция проекта и авторы текстов не несут ответственности за возникшие убытки в связи с использованием содержащейся на страницах портала Quote.rbc.ru информации."]
["Инвестирование в ценные бумаги сопряжено с повышенным риском, в связи с чем инвесторам необходимо провести самостоятельный анализ ситуации и объектов инвестирования перед вложением средств."]